Cogmind - Beta 9.1 @@@ ROGUE MODE // 2019.11.03 @ 11:30:40 Player: Alexbot Result: Self-destructed Performance ------------- Evolutions (2) 1000 Regions Visited (7) 1400 Robots Destroyed (9) 45 Value Destroyed (125) 125 Prototype IDs (22) 440 Alien Tech Used (0) 0 Bonus (333) 333 TOTAL SCORE: 3343 Bonus ------- Follower Combat Kills 40 Aligned with FarCom 300 Friendly Fire -7 Cogmind --------- Core Integrity 423/550 Matter 300/300 Energy 8/100 System Corruption 0% Temperature Cool (12) Location -8/Storage Parts ------- Power (2) Propulsion (4) Flight Unit Flight Unit Flight Unit Utility (3) Weapon (2) Light Assault Rifle Inventory (4) Flight Unit Flight Unit Field Lobotomy Kit Peak State ------------ Power Light Ion Engine Propulsion Flight Unit Flight Unit Utility (None) Weapon Light Assault Rifle Field Lobotomy Kit Inventory Flight Unit Flight Unit Light Assault Rifle [Rating: 14] Favorites ----------- Power Light Ion Engine Engine Light Ion Engine Propulsion Flight Unit Flight Unit Flight Unit Utility None Weapon Light Assault Rifle Ballistic Gun Light Assault Rifle Special Weapon Field Lobotomy Kit Build | -11 -10 -9 -9 -9 -8 -8 -8 ------- Run | Scr Mat Mat Min Exi Min Mat Sto Slots Evolved 4 | . . 2 . . . 2 . Power 1 | . . . . . . 1 . Propulsion 2 | . . 2 . . . . . Utility 1 | . . . . . . 1 . Weapon . | . . . . . . . . Parts Attached 21 | 1 1 . . . 7 8 4 Power 3 | . . . . . 1 2 . Engine 3 | . . . . . 1 2 . Core . | . . . . . . . . Reactor . | . . . . . . . . Propulsion 10 | . . . . . 4 4 2 Treads . | . . . . . . . . Leg . | . . . . . . . . Wheel . | . . . . . . . . Hover . | . . . . . . . . Flight 10 | . . . . . 4 4 2 Utility . | . . . . . . . . Device . | . . . . . . . . Storage . | . . . . . . . . Processor . | . . . . . . . . Hackware . | . . . . . . . . Protection . | . . . . . . . . Artifact . | . . . . . . . . Weapon 8 | 1 1 . . . 2 2 2 Energy Gun . | . . . . . . . . Energy Cannon . | . . . . . . . . Ballistic Gun 7 | 1 1 . . . 2 2 1 Ballistic Cannon . | . . . . . . . . Launcher . | . . . . . . . . Special Weapon 1 | . . . . . . . 1 Impact Weapon . | . . . . . . . . Slashing Weapon . | . . . . . . . . Piercing Weapon . | . . . . . . . . Special Melee Weapon . | . . . . . . . . Unidentified Prototypes . | . . . . . . . . Parts Lost 11 | . . 1 . . 1 3 6 Power 2 | . . . . . . . 2 Propulsion 5 | . . . . . . 2 3 Utility . | . . . . . . . . Weapon 4 | . . 1 . . 1 1 1 Highest Loss Streak 6 | . . 1 . . 1 2 6 Average Slot Usage (%) 29 | . 11 6 . . 46 60 60 Engine 5 | . . . . . 7 13 10 Flight 15 | . . . . . 28 34 31 Ballistic Gun 8 | . 11 6 . . 9 13 16 Naked Turns 159 | . 2 15 26 107 9 . . Heaviest Build 12 | 1 1 1 . . 4 12 8 Greatest Support 16 | 3 3 3 3 3 16 16 16 Greatest Overweight (x) . | . . . . . . . . Average Overweight (x) . | . . . . . . . . Largest Inventory Capacity 4 | 4 4 4 4 4 4 4 4 Average Capacity 4 | 4 4 4 4 4 4 4 4 Most Carried 4 | . 1 . . 1 3 4 3 Average Carried 1 | . . . . . 2 3 2 Final Capacity 4 | 4 4 4 4 4 4 4 4 Final Carried 3 | . . . . 1 3 3 3 Class Distribution -------------------- 53% | Mutant 29% | Scavenger-Mutant 16% | Scavenger-Sprinter Dominant Class ---------------- Mutant | -10/Materials Mutant | -9/Materials Mutant | -9/Mines Mutant | -9/Exiles Scavenger-Mutant | -8/Mines Scavenger-Mutant | -8/Materials Scavenger-Sprinter | -8/Storage Resources | -11 -10 -9 -9 -9 -8 -8 -8 ----------- Run | Scr Mat Mat Min Exi Min Mat Sto Matter Collected 391 | 149 16 . . . 111 37 78 Remotely . | . . . . . . . . Salvage Created 179 | . 16 . . . 43 105 15 Parts 18 | . . . . . 7 10 1 Haulers Intercepted . | . . . . . . . . Recyclers Shooed 1 | . . . . . . . 1 Parts Field Recycled . | . . . . . . . . Retrieved Matter . | . . . . . . . . Parts Self-Destructed . | . . . . . . . . Prevented . | . . . . . . . . Kills | -11 -10 -9 -9 -9 -8 -8 -8 ------- Run | Scr Mat Mat Min Exi Min Mat Sto Combat Hostiles Destroyed 9 | . 1 . . . 3 4 1 Melee 1 | . . . . . 1 . . Guns 8 | . 1 . . . 2 4 1 Classes Destroyed 2 | . 1 . . . . 1 . Swarmer 8 | . 1 . . . 3 3 1 Sentry 1 | . . . . . . 1 . Best Kill Streak 4 | . 1 . . . 3 4 1 Combat Bots Only 4 | . 1 . . . 3 4 1 Max Kills in Single Turn 1 | . 1 . . . 1 1 1 Gunslinging . | . . . . . . . . Exploded . | . . . . . . . . Melee 1 | . . . . . 1 . . Uniques/NPCs Destroyed . | . . . . . . . . Combat | -11 -10 -9 -9 -9 -8 -8 -8 -------- Run | Scr Mat Mat Min Exi Min Mat Sto Damage Taken 1055 | . 29 195 38 . 255 206 332 Core 459 | . 29 115 38 . 150 59 68 Absorbed by Shields . | . . . . . . . . Core Remaining (%) 70 | 100 88 . . . 24 . . Volleys Fired 38 | . 2 . . . 11 18 7 Largest 2 | . 1 . . . 1 2 2 Hottest 40 | . 20 . . . 20 40 40 Shots Fired 46 | . 2 . . . 11 20 13 Gun 45 | . 2 . . . 11 20 12 Cannon . | . . . . . . . . Launcher . | . . . . . . . . Special 1 | . . . . . . . 1 Kinetic 45 | . 2 . . . 11 20 12 Thermal . | . . . . . . . . Explosive . | . . . . . . . . Electromagnetic . | . . . . . . . . Robot Hit Streak 4 | . 2 . . . 1 4 3 Robot Miss Streak 7 | . . . . . 3 3 7 Penetration Max . | . . . . . . . . Secondary Targets 1 | . . . . . . . 1 Max Gunslinging Chain 1 | . . . . . . . 1 Shots Hit Robots 23 | . 2 . . . 4 12 5 Core Hits 15 | . 1 . . . 5 5 4 Critical Hits 1 | . . . . . . 1 . Critical Kills 1 | . . . . . . 1 . Critical Parts Destroyed . | . . . . . . . . Melee Attacks . | . . . . . . . . Impact . | . . . . . . . . Slashing . | . . . . . . . . Piercing . | . . . . . . . . Sneak Attacks . | . . . . . . . . Combat Hostiles . | . . . . . . . . Follow-up Attacks . | . . . . . . . . Damage Inflicted 207 | . 22 . . . 46 95 44 Guns 195 | . 16 . . . 40 95 44 Cannons . | . . . . . . . . Explosions . | . . . . . . . . Melee . | . . . . . . . . Ramming 12 | . 6 . . . 6 . . Kinetic 195 | . 16 . . . 40 95 44 Thermal . | . . . . . . . . Explosive . | . . . . . . . . Electromagnetic . | . . . . . . . . Impact . | . . . . . . . . Slashing . | . . . . . . . . Piercing . | . . . . . . . . Highest Corruption . | . . . . . . . . Average Corruption . | . . . . . . . . Corruption Purged . | . . . . . . . . Overload Shots . | . . . . . . . . Overflow Damage . | . . . . . . . . Projectiles . | . . . . . . . . Explosions . | . . . . . . . . Melee . | . . . . . . . . Knockbacks . | . . . . . . . . Impact . | . . . . . . . . Kinetic . | . . . . . . . . Secondary . | . . . . . . . . Self-Inflicted Damage 5 | . 2 . . . 3 . . Shots . | . . . . . . . . Rammed 4 | . 3 . . . 1 . . Targets Rammed 4 | . 3 . . . 1 . . Kicked . | . . . . . . . . Crushed . | . . . . . . . . Highest Temperature 24 | . . . . . . 10 24 Average Temperature 11 | . . . . . . 7 13 Received Heat Transfer 177 | . . 66 21 . . 27 63 Siege Activations . | . . . . . . . . Robots Corrupted . | . . . . . . . . Combat Hostiles . | . . . . . . . . Parts Fried . | . . . . . . . . Impact Corruptions . | . . . . . . . . Robots Melted . | . . . . . . . . Combat Hostiles . | . . . . . . . . Parts Melted . | . . . . . . . . Heat Transferred . | . . . . . . . . Parts Sabotaged . | . . . . . . . . Parts Stolen . | . . . . . . . . Parts Stripped . | . . . . . . . . Power Chain Reactions . | . . . . . . . . Missiles Intercepted . | . . . . . . . . Alert | -11 -10 -9 -9 -9 -8 -8 -8 ------- Run | Scr Mat Mat Min Exi Min Mat Sto Peak Influence 142 | . 65 61 23 . 70 142 84 Average Influence 51 | . 27 43 23 . 54 89 45 Maximum Alert Level . | . . . . . . . . Low Security (%) 100 | . . . . . . . . Level 1 . | . . . . . . . . Level 2 . | . . . . . . . . Level 3 . | . . . . . . . . Level 4 . | . . . . . . . . Level 5 . | . . . . . . . . High Security . | . . . . . . . . Max Security . | . . . . . . . . Squads Dispatched 4 | . 1 1 . . . 1 1 Investigation . | . . . . . . . . Extermination . | . . . . . . . . Reinforcement 4 | . 1 1 . . . 1 1 Assault . | . . . . . . . . Garrison . | . . . . . . . . Intercept . | . . . . . . . . Construction Impeded . | . . . . . . . . Haulers Reinforced . | . . . . . . . . Stealth | -11 -10 -9 -9 -9 -8 -8 -8 --------- Run | Scr Mat Mat Min Exi Min Mat Sto Distress Signals 2 | . 1 . . . . 1 . Communications Jammed . | . . . . . . . . Distress Signals . | . . . . . . . . Times Spotted 43 | . 6 6 3 . 4 11 13 Peak Tracking Total 8 | . 5 7 3 . 4 5 8 Tactical Retreats 2 | . 1 . 1 . . . . Traps | -11 -10 -9 -9 -9 -8 -8 -8 ------- Run | Scr Mat Mat Min Exi Min Mat Sto Traps Triggered . | . . . . . . . . Indirectly . | . . . . . . . . Trap Hack Attempts . | . . . . . . . . Triggered . | . . . . . . . . Disarmed . | . . . . . . . . Reprogrammed . | . . . . . . . . Reused . | . . . . . . . . Traps Extracted . | . . . . . . . . Installed . | . . . . . . . . Triggered . | . . . . . . . . Machines | -11 -10 -9 -9 -9 -8 -8 -8 ---------- Run | Scr Mat Mat Min Exi Min Mat Sto Machines Disabled . | . . . . . . . . Max in Single Turn . | . . . . . . . . Machines Sabotaged . | . . . . . . . . Garrisons Compromised . | . . . . . . . . Overloaded Fab Kills . | . . . . . . . . Fab Network Shutdowns . | . . . . . . . . Hacking | -11 -10 -9 -9 -9 -8 -8 -8 --------- Run | Scr Mat Mat Min Exi Min Mat Sto Machines Accessed 4 | . . 1 . 1 . . 2 Terminals 3 | . . 1 . . . . 2 Fabricators . | . . . . . . . . Repair Stations . | . . . . . . . . Recycling Units . | . . . . . . . . Scanalyzers . | . . . . . . . . Garrison Access . | . . . . . . . . Total Hacks 8 | . . 2 . 1 . . 5 Successful 6 | . . 1 . 1 . . 4 Failed 2 | . . 1 . . . . 1 Catastrophic . | . . . . . . . . Database Lockouts . | . . . . . . . . Manual 7 | . . 2 . 1 . . 4 Terminals 7 | . . 2 . . . . 5 Fabricators . | . . . . . . . . Repair Stations . | . . . . . . . . Recycling Units . | . . . . . . . . Scanalyzers . | . . . . . . . . Garrison Access . | . . . . . . . . Terminal Hacks 4 | . . . . 1 . . 3 Open Door 1 | . . . . . . . 1 Branch Access Points 1 | . . . . . . . 1 Terminal Index 1 | . . . . . . . 1 EX-Prototype ID Bank 1 | . . . . 1 . . . Fabricator Hacks . | . . . . . . . . Repair Station Hacks . | . . . . . . . . Recycling Unit Hacks . | . . . . . . . . Scanalyzer . | . . . . . . . . Garrison Access Hacks . | . . . . . . . . Unauthorized Hacks 6 | . . 3 . . . . 3 Terminals 2 | . . 1 . . . . 1 Botnet 2 | . . 1 . . . . 1 Fabricators . | . . . . . . . . Repair Stations . | . . . . . . . . Recycling Units . | . . . . . . . . Scanalyzers . | . . . . . . . . Garrison Access . | . . . . . . . . Data Cores Recovered . | . . . . . . . . Used . | . . . . . . . . Hacking Detections 2 | . . 1 . . . . 1 Full Trace Events . | . . . . . . . . Feedback Events . | . . . . . . . . Feedback Blocked . | . . . . . . . . Robot Schematics Acquired . | . . . . . . . . Robots Built . | . . . . . . . . Matter . | . . . . . . . . Time . | . . . . . . . . Total Robot Build Rating . | . . . . . . . . Part Schematics Acquired . | . . . . . . . . Parts Built . | . . . . . . . . Matter . | . . . . . . . . Time . | . . . . . . . . Total Part Build Rating . | . . . . . . . . Parts Repaired . | . . . . . . . . Time . | . . . . . . . . Parts Recycled . | . . . . . . . . Recycled Matter . | . . . . . . . . Retrieved Matter . | . . . . . . . . Retrieved Components . | . . . . . . . . Parts Scanalyzed . | . . . . . . . . Part Schematics Acquired . | . . . . . . . . Parts Damaged . | . . . . . . . . Bothacking | -11 -10 -9 -9 -9 -8 -8 -8 ------------ Run | Scr Mat Mat Min Exi Min Mat Sto Used RIF Installer . | . . . . . . . . Robots Hacked . | . . . . . . . . Non-combat . | . . . . . . . . Combat . | . . . . . . . . Robot Hacks Applied . | . . . . . . . . Relay Couplers Released . | . . . . . . . . Robots Rewired . | . . . . . . . . Allies Hacked . | . . . . . . . . Hacks Repelled . | . . . . . . . . Allies | -11 -10 -9 -9 -9 -8 -8 -8 -------- Run | Scr Mat Mat Min Exi Min Mat Sto Total Allies 1 | . . . . . . . 1 Largest Group 1 | . . . . . . . 1 Highest-Rated Group 15 | . . . . . . . 15 Highest-Rated Ally 15 | . . . . . . . 15 Total Orders 2 | . . . . . . . 2 FOLLOW 1 | . . . . . . . 1 EXPLORE 1 | . . . . . . . 1 Ally Attacks 3 | . . . . . . . 3 Total Damage 76 | . . . . . . . 76 Kills 2 | . . . . . . . 2 Allies Corrupted . | . . . . . . . . Allies Melted . | . . . . . . . . Field Lobotomies 1 | . . . . . . . 1 Intel | -11 -10 -9 -9 -9 -8 -8 -8 ------- Run | Scr Mat Mat Min Exi Min Mat Sto Robot Analysis Total . | . . . . . . . . Derelict Logs Recovered . | . . . . . . . . Drone Launches 16 | . . . . . . . 16 Drone Recoveries . | . . . . . . . . Exploration | -11 -10 -9 -9 -9 -8 -8 -8 ------------- Run | Scr Mat Mat Min Exi Min Mat Sto Turns Passed 505 | 13 60 48 26 107 102 87 62 Spaces Moved 871 | 22 98 96 52 211 184 121 87 Core 490 | 22 98 96 52 211 11 . . Treads . | . . . . . . . . Legs . | . . . . . . . . Wheels . | . . . . . . . . Hover . | . . . . . . . . Flight 381 | . . . . . 173 121 87 Fastest Speed 31 | 50 50 50 50 50 31 31 31 Average Speed 43 | 50 50 50 50 50 36 32 32 Slowest Speed 50 | 50 50 50 50 50 50 40 34 Overloaded Moves . | . . . . . . . . Propulsion Burnouts . | . . . . . . . . Robots Hopped 5 | . . . . . 2 3 . Cave-ins Triggered . | . . . . . . . . Exploration Rate (%) 27 | 3 23 21 14 61 53 19 28 Regions Visited 7 Branch Regions 4 Pre-discovered Areas . | . . . . . . . . Known Exits Taken . | . . . . . . . . Unknown Exits Taken 7 | 1 1 1 1 1 1 1 . Scrap Searched 2 | . . . . . 2 . . Spaces Dug . | . . . . . . . . Terrain Destroyed . | . . . . . . . . Melee . | . . . . . . . . Projectile . | . . . . . . . . AOE . | . . . . . . . . Actions | -11 -10 -9 -9 -9 -8 -8 -8 --------- Run | Scr Mat Mat Min Exi Min Mat Sto Total 943 | 22 107 95 51 211 203 146 108 Wait 4 | . 3 . . . 1 . . Move 854 | 21 97 95 51 210 179 114 87 Hop 5 | . . . . . 2 3 . Pick Up 6 | . . . . 1 2 1 2 Fast Attach 12 | 1 . . . . 7 4 . Attach 4 | . 1 . . . . 1 2 Detach 1 | . 1 . . . . . . Swap 5 | . . . . . . 3 2 Drop 2 | . . . . . . 2 . Fire 38 | . 2 . . . 11 18 7 Melee . | . . . . . . . . Ram 4 | . 3 . . . 1 . . Kick . | . . . . . . . . Crush . | . . . . . . . . Escape Stasis . | . . . . . . . . Rewire . | . . . . . . . . Trap . | . . . . . . . . Miscellaneous 8 | . . . . . . . 8 Route ------- -11/Scrapyard -10/Materials -9/Materials -9/Mines -9/Exiles -8/Mines -8/Materials -8/Storage (discovered 1 exit: Rec) History --------- Turn | Location | Event 2 | -11/Scrapyard | Met Revision 17 5 | -11/Scrapyard | Discovered new exit (range 15) 14 | -11/Scrapyard | Entered Materials 48 | -10/Materials | Discovered new exit (range 15) 74 | -10/Materials | Entered another Materials area 74 | -9/Materials | Evolved 2 slots: Propulsion x2 117 | -9/Materials | Discovered new exit (range 11) 122 | -9/Materials | Entered Mines 146 | -9/Mines | Deemed a non-threat by the Exiles lab entrance 146 | -9/Mines | Discovered new exit (range 5) 148 | -9/Mines | Entered Exiles 161 | -9/Exiles | Met 8R-AWN 169 | -9/Exiles | Met EX-HEX 183 | -9/Exiles | Met EX-BIN 192 | -9/Exiles | Aligned with FarCom system 192 | -9/Exiles | Given EX-Vault access code 204 | -9/Exiles | Opened EX-Vault 206 | -9/Exiles | Found Field Lobotomy Kit 217 | -9/Exiles | Warned to stay clear of 0b10 Research branches 232 | -9/Exiles | Met EX-DEC 251 | -9/Exiles | Discovered new exit (range 10) 255 | -9/Exiles | Left Exiles lab with Field Lobotomy Kit 255 | -9/Exiles | Entered Mines 260 | -8/Mines | Core integrity fell below 50% 352 | -8/Mines | Discovered new exit (range 14) 357 | -8/Mines | Entered Materials 357 | -8/Materials | Evolved 2 slots: Power x1, Utility x1 440 | -8/Materials | Discovered new exit (range 11) 444 | -8/Materials | Entered Storage 464 | -8/Storage | Identified exit to Recycling 480 | -8/Storage | Assimilated Y-45 Defender with FLK Orb 506 | -8/Storage | Self-destructed Last Messages --------------- 00485_ Y-45 Defender destroyed. 00485_ Drone destroyed. 00486_ Lgt. Ion Engine destroyed. 00488_ S-10 Pest destroyed. 00488_ Defender 3a destroyed. 00488_ R-06 Scavenger collects Lgt. Ion Engine. 00489_ Drone destroyed. 00490_ Flight Unit destroyed. 00491_ Drone destroyed. 00492_ S-10 Pest destroyed. 00492_ Switching to secondary target: Y-45 Defender. 00493_ Drone destroyed. 00494_ R-06 Scavenger destroyed. 00495_ Acquired Flight Unit. 00497_ Drone destroyed. 00497_ Acquired Flight Unit. 00499_ Acquired 12 matter. 00499_ Acquired 56 matter. 00501_ Acquired 10 matter. 00505_ Lgt. Assault Rifle destroyed. Map ----- +----------------------------------------------------+ | "Y" #???????###?????????????????????????????? | | #???????]]#?????????????????????????????? | | #???????]]??????????????????#???????????? | | !! #????##" "#???????????????? #???????????? | | !! #????#T ???#######????? ?????????????? | | ################+###### = #####/#+###??????????? | | % [ =%!^ #??????????? | | % [%% [ = [ +??????????? | | w % !! #??????????? | | ########+############## ###########??????????? | | # % #??????????##! ##????????????????????? | | # """ ""#???????????#%= #?????????????????????? | | # """ T"#???????????#* #?????????????????????? | | # """ ""#???????????# #?????????????????????? | | # """ #???????????# #?????????????????????? | | # """ #???????????# n #?????????????????????? | | # #???????????# sg#?????????????????????? | | # #???????????# #?????????????????????? | | ######## ##???????????#% #?????????????????????? | | #???????##???????????## nn##????????????????????? | | #????????????????????# n ag#####+#+###??????????? | | ##????????????????????#nnY an k #??????????? | | ??????????????????????# +??????????? | | ??????????????????????# % #??????????? | | ??????????????????????# ######### #??????????? | | ??????????????????????###@###????????????????????? | | ??????????????????????? ?????????????????????? | | ??????????????????????# w ???????????????????? | | ??????????????????????# ?????????????????? | | ??????????????????????# ???????????????? | | ??????????????????????# #??????????????? | | ??????????????????????# #??????????????? | | ??????????????????????# k ?????????????? | | ??????????????????????############# ????????????? | | ???????????????????????????????????? ???????????? | | ?????????????????????????????????g???????????????? | | ?????????????????????????????????????????????????? | | ?????????????????????????????????????????????????? | | ???????????????????????????????g?????????????????? | | ?????????????????????????????????????????????????? | | ?????????????????????????????????????????????????? | | ?????????????????????????????????????????????????? | | ?????????????????????????????????????????????????? | | ?????????????????????????????????????????????????? | | ?????????????????????????????????????????????????? | | ?????????????????????????????????????????????????? | | ?????????????????????????????????????????????????? | | ?????????????????????????????????????????????????? | | ?????????????????????????????????????????????????? | | ?????????????????????????????????????????????????? | +----------------------------------------------------+ Best States ------------- Heat Dissipation 31 Energy Generation 17 Energy Capacity 290 Matter Stores 300 Matter Capacity 300 Sight Range 16 Terrain Scan Density 10 Evasion (%) 63 Item Schematics ----------------- None Robot Schematics ------------------ None Fabricated ------------ Nothing Alien Tech Used ----------------- None Achievements -------------- None Challenges ------------ None Game ------ Seed FlightGravitonScanner Manual? 0 Play Time 00:08:22 Cumulative 673.9 hours Start 2019.11.03 @ 11:23:58 End 2019.11.03 @ 11:30:40 Sessions 1 Manual Loads 0 Difficulty Rogue Special Mode None Game No. 171 Rogue 171 Adventurer 0 Explorer 0 Win Type - Total 30 Types 22/0/2/3/2/0/1 Lore% 96 Gallery% 97 Achievement% 90 Wizard Run 0 Options --------- ASCII 0 Keyboard 1 Movement Numpad Keybinds 0 Fullscreen 1 Font 18/SmallcapsGlow Map View 76x50 Tactical HUD 1 Map Filters NONE Filters NONE Steam 1 RUN: 82675d07-71d1-483a-a00a-c966038b647f